fUSD/lending_fUSD_20250617
["ID","MTS","AMOUNT","RATE_DAILY","PERIOD"]
[366345709,1750200641973,-490.0,0.00016438,2]
[366345710,1750200641983,-490.0,0.00016438,2]
[366345711,1750200641994,-490.0,0.00016438,2]
[366345712,1750200642005,-490.0,0.00016438,2]
[366345713,1750200642015,-163.94930429,0.00016438,2]
[366345714,1750200642026,-586.56,0.00016438,2]
[366345715,1750200642035,-490.0,0.00016438,2]
[366345716,1750200642045,-614.74062055,0.00016438,2]
[366345717,1750200642055,-490.0,0.00016438,2]
[366345718,1750200642065,-490.0,0.00016438,2]
[366345719,1750200642187,-2190.002336,0.00016438,2]
[366345720,1750200642198,-490.0,0.00016438,2]
[366345721,1750200642208,-159.424321,0.00016438,2]
[366345722,1750200642218,-490.0,0.00016438,2]
[366345723,1750200642228,-490.0,0.00016438,2]
[366345724,1750200642238,-490.0,0.00016438,2]
[366345725,1750200642650,-286.45730636,0.00016438,2]
[366345726,1750200642684,-490.0,0.00016438,2]
[366345727,1750200642694,-490.0,0.00016438,2]
[366345728,1750200642704,-161.916212,0.00016438,2]
[366345729,1750200642714,-490.0,0.00016438,2]
[366345730,1750200642724,-600.07290256,0.00016438,2]
[366345731,1750200642734,-490.0,0.00016438,2]
[366345732,1750200642744,-561.79,0.00016438,2]
[366345733,1750200642754,-490.0,0.00016438,2]
[366345734,1750200642763,-490.0,0.00016438,2]
[366345735,1750200642773,-490.0,0.00016438,2]
[366345736,1750200642785,-490.0,0.00016438,2]
[366345737,1750200642800,-490.0,0.00016438,2]
[366345739,1750200642812,-490.0,0.00016438,2]
[366345740,1750200642823,-490.0,0.00016438,2]
[366345741,1750200642833,-490.0,0.00016438,2]
[366345742,1750200642842,-490.0,0.00016438,2]
[366345743,1750200642852,-599.69,0.00016438,2]
[366345744,1750200642862,-490.0,0.00016438,2]
[366345745,1750200642871,-490.0,0.00016438,2]
[366345746,1750200642881,-490.0,0.00016438,2]
[366345747,1750200642891,-643.71,0.00016438,2]
[366345748,1750200642901,-490.0,0.00016438,2]
[366345749,1750200642911,-490.0,0.00016438,2]
[366345750,1750200642922,-490.0,0.00016438,2]
[366345751,1750200642931,-490.0,0.00016438,2]
[366345752,1750200642941,-490.0,0.00016438,2]
[366345754,1750200642950,-490.0,0.00016438,2]
[366345755,1750200642961,-929.15,0.00016438,2]
[366345756,1750200642971,-490.0,0.00016438,2]
[366345757,1750200642981,-1000.0,0.00016438,2]
[366345758,1750200642991,-490.0,0.00016438,2]
[366345759,1750200643001,-527.35921533,0.00016438,2]
[366345760,1750200643011,-490.0,0.00016438,2]
[366345761,1750200643021,-490.0,0.00016438,2]
[366345762,1750200643031,-490.0,0.00016438,2]
[366345763,1750200643040,-500.0,0.00016438,2]
[366345765,1750200643051,-490.0,0.00016438,2]
[366345767,1750200643061,-490.0,0.00016438,2]
[366345768,1750200643070,-500.0,0.00016438,2]
[366345769,1750200643079,-490.0,0.00016438,2]
[366345770,1750200643089,-500.0,0.00016438,2]
[366345771,1750200643098,-500.0,0.00016438,2]
[366345772,1750200643108,-169.664565,0.00016438,2]
[366345773,1750200643118,-490.0,0.00016438,2]
[366345774,1750200643128,-490.0,0.00016438,2]
[366345775,1750200643138,-490.0,0.00016438,2]
[366345776,1750200643147,-490.0,0.00016438,2]
[366345777,1750200643157,-490.0,0.00016438,2]
[366345778,1750200643167,-490.0,0.00016438,2]
[366345779,1750200643176,-490.0,0.00016438,2]
[366345780,1750200643186,-490.0,0.00016438,2]
[366345781,1750200643196,-561.16577332,0.00016438,2]
[366345782,1750200643206,-223.33050008,0.00016438,2]
[366345783,1750200643216,-490.0,0.00016438,2]
[366345784,1750200643226,-490.0,0.00016438,2]
[366345785,1750200643236,-490.0,0.00016438,2]
[366345786,1750200643246,-773.75,0.00016438,2]
[366345787,1750200643257,-490.0,0.00016438,2]
[366345788,1750200643267,-490.0,0.00016438,2]
[366345789,1750200643277,-490.0,0.00016438,2]
[366345790,1750200643287,-490.0,0.00016438,2]
[366345791,1750200643297,-490.0,0.00016438,2]
[366345792,1750200643307,-490.0,0.00016438,2]
[366345793,1750200643317,-490.0,0.00016438,2]
[366345795,1750200643327,-391.87577317,0.00016438,2]
[366345797,1750200643336,-490.0,0.00016438,2]
[366345799,1750200643346,-678.64,0.00016438,2]
[366345801,1750200643357,-490.0,0.00016438,2]
[366345802,1750200643367,-490.0,0.00016438,2]
[366345803,1750200643378,-490.0,0.00016438,2]
[366345804,1750200643388,-653.31,0.00016438,2]
[366345805,1750200643398,-598.99974624,0.00016438,2]
[366345806,1750200643407,-490.0,0.00016438,2]
[366345807,1750200643417,-490.0,0.00016438,2]
[366345808,1750200643427,-490.0,0.00016438,2]
[366345809,1750200643437,-490.0,0.00016438,2]
[366345810,1750200643447,-490.0,0.00016438,2]
[366345812,1750200643456,-347.74947041,0.00016438,2]
[366345813,1750200643466,-490.0,0.00016438,2]
[366345815,1750200643476,-490.0,0.00016438,2]
[366345816,1750200643486,-490.0,0.00016438,2]
[366345817,1750200643496,-490.0,0.00016438,2]
[366345818,1750200643506,-490.0,0.00016438,2]
[366345819,1750200643516,-490.0,0.00016438,2]
[366345820,1750200643526,-490.0,0.00016438,2]
[366345821,1750200643537,-490.0,0.00016438,2]
[366345822,1750200643547,-490.0,0.00016438,2]
[366345823,1750200643557,-490.0,0.00016438,2]
[366345826,1750200643566,-151.0,0.00016438,2]
[366345829,1750200643576,-490.0,0.00016438,2]
[366345832,1750200643586,-490.0,0.00016438,2]
[366345834,1750200643597,-517.31413246,0.00016438,2]
[366345836,1750200643606,-490.0,0.00016438,2]
[366345838,1750200643616,-490.0,0.00016438,2]
[366345839,1750200643627,-490.0,0.00016438,2]
[366345840,1750200643636,-490.0,0.00016438,2]
[366345841,1750200643647,-490.0,0.00016438,2]
[366345842,1750200643656,-490.0,0.00016438,2]
[366345843,1750200643666,-714.31,0.00016438,2]
[366345844,1750200643677,-490.0,0.00016438,2]
[366345845,1750200643687,-515.21,0.00016438,2]
[366345846,1750200643698,-490.0,0.00016438,2]
[366345847,1750200643708,-490.0,0.00016438,2]
[366345848,1750200643719,-490.0,0.00016438,2]
[366345849,1750200643729,-627.2722399,0.00016438,2]
[366345850,1750200643739,-611.64,0.00016438,2]
[366345851,1750200643749,-629.28,0.00016438,2]
[366345852,1750200643759,-490.0,0.00016438,2]
[366345853,1750200643769,-490.0,0.00016438,2]
[366345854,1750200643779,-490.0,0.00016438,2]
[366345855,1750200643791,-522.37,0.00016438,2]
[366345856,1750200643801,-490.0,0.00016438,2]
[366345857,1750200643811,-490.0,0.00016438,2]
[366345858,1750200643822,-490.0,0.00016438,2]
[366345859,1750200643832,-490.0,0.00016438,2]
[366345860,1750200643842,-490.0,0.00016438,2]
[366345861,1750200643852,-409.92401624,0.00016438,2]
[366345862,1750200643863,-490.0,0.00016438,2]
[366345863,1750200643874,-490.0,0.00016438,2]
[366345864,1750200643884,-670.81,0.00016438,2]
[366345865,1750200643894,-490.0,0.00016438,2]
[366345866,1750200643904,-490.0,0.00016438,2]
[366345867,1750200643915,-490.0,0.00016438,2]
[366345868,1750200643925,-490.0,0.00016438,2]
[366345869,1750200643935,-623.78,0.00016438,2]
[366345870,1750200643946,-490.0,0.00016438,2]
[366345871,1750200643957,-490.0,0.00016438,2]
[366345872,1750200643977,-490.0,0.00016438,2]
[366345873,1750200643987,-490.0,0.00016438,2]
[366345874,1750200643998,-151.0,0.00016438,2]
[366345875,1750200644008,-490.0,0.00016438,2]
[366345876,1750200644019,-558.19,0.00016438,2]
[366345877,1750200644030,-573.92,0.00016438,2]
[366345878,1750200644041,-544.2,0.00016438,2]
[366345879,1750200644051,-231.43456317,0.00016438,2]
[366345880,1750200644061,-490.0,0.00016438,2]
[366345881,1750200644071,-490.0,0.00016438,2]
[366345882,1750200644081,-490.0,0.00016438,2]
[366345883,1750200644091,-490.0,0.00016438,2]
[366345884,1750200644101,-490.0,0.00016438,2]
[366345885,1750200644112,-490.0,0.00016438,2]
[366345886,1750200644122,-490.0,0.00016438,2]
[366345887,1750200644132,-490.0,0.00016438,2]
[366345888,1750200644142,-490.0,0.00016438,2]
[366345889,1750200644151,-490.0,0.00016438,2]
[366345890,1750200644162,-490.0,0.00016438,2]
[366345891,1750200644172,-490.0,0.00016438,2]
[366345892,1750200644182,-157.944579,0.00016438,2]
[366345893,1750200644192,-490.0,0.00016438,2]
[366345894,1750200644202,-490.0,0.00016438,2]
[366345895,1750200644213,-490.0,0.00016438,2]
[366345896,1750200644222,-490.0,0.00016438,2]
[366345897,1750200644232,-490.0,0.00016438,2]
[366345898,1750200644243,-490.0,0.00016438,2]
[366345899,1750200644252,-1513.78,0.00016438,2]
[366345900,1750200644262,-718.11,0.00016438,2]
[366345901,1750200644272,-490.0,0.00016438,2]
[366345902,1750200644282,-490.0,0.00016438,2]
[366345903,1750200644292,-788.5,0.00016438,2]
[366345904,1750200644303,-490.0,0.00016438,2]
[366345905,1750200644315,-490.0,0.00016438,2]
[366345906,1750200644325,-490.0,0.00016438,2]
[366345907,1750200644336,-490.0,0.00016438,2]
[366345908,1750200644347,-490.0,0.00016438,2]
[366345909,1750200644358,-490.0,0.00016438,2]
[366345910,1750200644368,-490.0,0.00016438,2]
[366345911,1750200644379,-490.0,0.00016438,2]
[366345912,1750200644389,-490.0,0.00016438,2]
[366345913,1750200644399,-490.0,0.00016438,2]
[366345914,1750200644409,-490.0,0.00016438,2]
[366345915,1750200644419,-836.96,0.00016438,2]
[366345916,1750200644429,-151.0,0.00016438,2]
[366345917,1750200644438,-636.27,0.00016438,2]
[366345918,1750200644448,-490.0,0.00016438,2]
[366345919,1750200644459,-490.0,0.00016438,2]
[366345920,1750200644469,-837.26,0.00016438,2]
[366345921,1750200644479,-151.0,0.00016438,2]
[366345922,1750200644488,-490.0,0.00016438,2]
[366345923,1750200644503,-490.0,0.00016438,2]
[366345924,1750200644514,-490.0,0.00016438,2]
[366345925,1750200644523,-490.0,0.00016438,2]
[366345926,1750200644533,-490.0,0.00016438,2]
[366345927,1750200644543,-320.79356649,0.00016438,2]
[366345928,1750200644553,-490.0,0.00016438,2]
[366345929,1750200644563,-581.57,0.00016438,2]
[366345930,1750200644573,-151.0,0.00016438,2]
[366345931,1750200644584,-151.0,0.00016438,2]
[366345932,1750200644594,-795.12,0.00016438,2]
[366345933,1750200644604,-490.0,0.00016438,2]
[366345934,1750200644615,-522.0,0.00016438,2]
[366345935,1750200644625,-490.0,0.00016438,2]
[366345936,1750200644635,-490.0,0.00016438,2]
[366345937,1750200644646,-490.0,0.00016438,2]
[366345938,1750200644657,-490.0,0.00016438,2]
[366345939,1750200644666,-490.0,0.00016438,2]
[366345940,1750200644676,-490.0,0.00016438,2]
[366345941,1750200644686,-490.0,0.00016438,2]
[366345942,1750200644696,-490.0,0.00016438,2]
[366345943,1750200644706,-490.0,0.00016438,2]
[366345944,1750200644715,-490.0,0.00016438,2]
[366345945,1750200644725,-490.0,0.00016438,2]
[366345946,1750200644734,-490.0,0.00016438,2]
[366345947,1750200644745,-490.0,0.00016438,2]
[366345948,1750200644755,-490.0,0.00016438,2]
[366345949,1750200644765,-500.0,0.00016438,2]
[366345950,1750200644775,-490.0,0.00016438,2]
[366345951,1750200644787,-490.0,0.00016438,2]
[366345952,1750200644798,-710.08,0.00016438,2]
[366345953,1750200644807,-490.0,0.00016438,2]
[366345954,1750200644817,-490.0,0.00016438,2]
[366345955,1750200644827,-776.98,0.00016438,2]
[366345956,1750200644837,-490.34275399,0.00016438,2]
[366345957,1750200644847,-490.0,0.00016438,2]
[366345958,1750200644857,-642.6,0.00016438,2]
[366345959,1750200644868,-490.0,0.00016438,2]
[366345960,1750200644878,-490.0,0.00016438,2]
[366345961,1750200644888,-974.94,0.00016438,2]
[366345962,1750200644898,-490.0,0.00016438,2]
[366345963,1750200644908,-490.0,0.00016438,2]
[366345964,1750200644918,-820.63,0.00016438,2]
[366345965,1750200644927,-490.0,0.00016438,2]
[366345966,1750200644938,-490.0,0.00016438,2]
[366345967,1750200644948,-490.0,0.00016438,2]
[366345968,1750200644958,-490.0,0.00016438,2]
[366345969,1750200644968,-490.0,0.00016438,2]
[366345970,1750200644978,-1653.43,0.00016438,2]
[366345971,1750200644988,-490.0,0.00016438,2]
[366345972,1750200645000,-151.0,0.00016438,2]
[366345973,1750200645010,-490.0,0.00016438,2]
[366345974,1750200645020,-151.0,0.00016438,2]
[366345975,1750200645030,-569.27,0.00016438,2]
[366345976,1750200645040,-490.0,0.00016438,2]
[366345977,1750200645050,-1240.05,0.00016438,2]
[366345978,1750200645059,-490.0,0.00016438,2]
[366345979,1750200645070,-594.17,0.00016438,2]
[366345980,1750200645079,-151.0,0.00016438,2]
[366345981,1750200645090,-151.0,0.00016438,2]
[366345982,1750200645100,-574.2,0.00016438,2]
[366345983,1750200645110,-490.0,0.00016438,2]
[366345984,1750200645120,-490.0,0.00016438,2]
[366345985,1750200645135,-490.0,0.00016438,2]
[366345986,1750200645145,-490.0,0.00016438,2]
[366345987,1750200645155,-490.0,0.00016438,2]
[366345988,1750200645165,-276.36035298,0.00016438,2]
[366345989,1750200645175,-1035.77,0.00016438,2]
[366345990,1750200645184,-490.0,0.00016438,2]
[366345991,1750200645283,-490.0,0.00016438,2]
[366345992,1750200645293,-490.0,0.00016438,2]
[366345993,1750200645303,-490.0,0.00016438,2]
[366345994,1750200645312,-490.0,0.00016438,2]
[366345995,1750200645322,-490.0,0.00016438,2]
[366345996,1750200645332,-634.4,0.00016438,2]
[366345997,1750200645342,-151.0,0.00016438,2]
[366345998,1750200645351,-153.16987,0.00016438,2]
[366345999,1750200645361,-153.717704,0.00016438,2]
[366346000,1750200645371,-1317.14,0.00016438,2]
[366346001,1750200645381,-709.67,0.00016438,2]
[366346002,1750200645391,-440.0,0.00016438,2]
[366346003,1750200645400,-568.37,0.00016438,2]
[366346004,1750200645411,-490.0,0.00016438,2]
[366346005,1750200645420,-1664.13,0.00016438,2]
[366346006,1750200645430,-490.0,0.00016438,2]
[366346007,1750200645440,-490.0,0.00016438,2]
[366346008,1750200645449,-490.0,0.00016438,2]
[366346009,1750200645459,-490.0,0.00016438,2]
[366346010,1750200645469,-490.0,0.00016438,2]
[366346011,1750200645479,-490.0,0.00016438,2]
[366346012,1750200645488,-275.85702967,0.00016438,2]
[366346013,1750200645498,-490.0,0.00016438,2]
[366346014,1750200645508,-490.0,0.00016438,2]
[366346015,1750200645518,-1532.47,0.00016438,2]
[366346016,1750200645528,-280.05223694,0.00016438,2]
[366346017,1750200645538,-490.0,0.00016438,2]
[366346018,1750200645548,-490.0,0.00016438,2]
[366346019,1750200645557,-490.0,0.00016438,2]
[366346020,1750200645567,-490.0,0.00016438,2]
[366346021,1750200645577,-490.0,0.00016438,2]
[366346022,1750200645587,-476.16159036,0.00016438,2]
[366346023,1750200645596,-490.0,0.00016438,2]
[366346024,1750200645606,-490.0,0.00016438,2]
[366346025,1750200645616,-490.0,0.00016438,2]
[366346026,1750200645625,-275.09393759,0.00016438,2]
[366346027,1750200645635,-490.0,0.00016438,2]
[366346028,1750200645645,-490.0,0.00016438,2]
[366346029,1750200645654,-163.41400143,0.00016438,2]
[366346030,1750200645664,-490.0,0.00016438,2]
[366346031,1750200645674,-490.0,0.00016438,2]
[366346032,1750200645684,-490.0,0.00016438,2]
[366346033,1750200645694,-779.39,0.00016438,2]
[366346034,1750200645704,-186.252379,0.00016438,2]
[366346035,1750200645714,-490.0,0.00016438,2]
[366346036,1750200645725,-1479.82,0.00016438,2]
[366346037,1750200645735,-490.0,0.00016438,2]
[366346038,1750200645745,-615.2,0.00016438,2]
[366346039,1750200645756,-490.0,0.00016438,2]
[366346040,1750200645767,-1545.41,0.00016438,2]
[366346041,1750200645777,-490.0,0.00016438,2]
[366346042,1750200645791,-460.0,0.00016438,2]
[366346043,1750200645801,-490.0,0.00016438,2]
[366346044,1750200645811,-490.0,0.00016438,2]
[366346045,1750200645820,-490.0,0.00016438,2]
[366346046,1750200645831,-151.0,0.00016438,2]
[366346047,1750200645842,-151.0,0.00016438,2]
[366346048,1750200645852,-490.0,0.00016438,2]
[366346049,1750200645863,-490.0,0.00016438,2]
[366346050,1750200645874,-1431.76,0.00016438,2]
[366346051,1750200645883,-490.0,0.00016438,2]
[366346052,1750200645893,-151.0,0.00016438,2]
[366346053,1750200645903,-1264.03,0.00016438,2]
[366346054,1750200645912,-231.271232,0.00016438,2]
[366346056,1750200645922,-490.0,0.00016438,2]
[366346058,1750200645931,-214.66544142,0.00016438,2]
[366346060,1750200645941,-151.0,0.00016438,2]
[366346061,1750200645951,-151.0,0.00016438,2]
[366346063,1750200645960,-1644.26,0.00016438,2]
[366346064,1750200645970,-490.0,0.00016438,2]
[366346065,1750200645980,-1385.37,0.00016438,2]
[366346066,1750200645989,-151.0,0.00016438,2]
[366346067,1750200645999,-151.0,0.00016438,2]
[366346068,1750200646009,-1064.1,0.00016438,2]
[366346069,1750200646019,-490.0,0.00016438,2]
[366346070,1750200646030,-416.12,0.00016438,2]
[366346071,1750200646040,-490.0,0.00016438,2]
[366346072,1750200646049,-490.0,0.00016438,2]
[366346074,1750200646059,-490.0,0.00016438,2]
[366346075,1750200646069,-490.0,0.00016438,2]
[366346076,1750200646079,-570.20597777,0.00016438,2]
[366346077,1750200646089,-2207.56,0.00016438,2]
[366346078,1750200646099,-490.0,0.00016438,2]
[366346079,1750200646109,-315.909236,0.00016438,2]
[366346080,1750200646119,-315.909236,0.00016438,2]
[366346081,1750200646128,-490.0,0.00016438,2]
[366346082,1750200646138,-490.0,0.00016438,2]
[366346083,1750200646148,-151.279902,0.00016438,2]
[366346084,1750200646158,-1422.11,0.00016438,2]
[366346085,1750200646167,-490.0,0.00016438,2]
[366346086,1750200646177,-830.08,0.00016438,2]
[366346087,1750200646187,-490.0,0.00016438,2]
[366346088,1750200646196,-490.0,0.00016438,2]
[366346089,1750200646205,-565.78,0.00016438,2]
[366346090,1750200646214,-151.0,0.00016438,2]
[366346091,1750200646223,-490.0,0.00016438,2]
[366346092,1750200646233,-490.0,0.00016438,2]
[366346093,1750200646244,-490.0,0.00016438,2]
[366346094,1750200646254,-490.0,0.00016438,2]
[366346095,1750200646264,-391.15581231,0.00016438,2]
[366346096,1750200646273,-921.86,0.00016438,2]
[366346097,1750200646282,-490.0,0.00016438,2]
[366346098,1750200646291,-490.0,0.00016438,2]
[366346099,1750200646300,-816.5,0.00016438,2]
[366346100,1750200646310,-490.0,0.00016438,2]
[366346101,1750200646320,-1986.03,0.00016438,2]
[366346102,1750200646329,-901.41,0.00016438,2]
[366346103,1750200646338,-619.56714005,0.00016438,2]
[366346104,1750200646349,-490.0,0.00016438,2]
[366346105,1750200646359,-505.09,0.00016438,2]
[366346106,1750200646368,-490.0,0.00016438,2]
[366346107,1750200646379,-1345.99,0.00016438,2]
[366346108,1750200646389,-1694.17,0.00016438,2]
[366346109,1750200646399,-490.0,0.00016438,2]
[366346110,1750200646409,-528.47,0.00016438,2]
[366346111,1750200646419,-847.97,0.00016438,2]
[366346112,1750200646428,-576.94,0.00016438,2]
[366346113,1750200646438,-508.68,0.00016438,2]
[366346114,1750200646448,-490.0,0.00016438,2]
[366346115,1750200646458,-1003.13,0.00016438,2]
[366346116,1750200646467,-151.0,0.00016438,2]
[366346117,1750200646477,-151.0,0.00016438,2]
[366346118,1750200646486,-490.0,0.00016438,2]
[366346119,1750200646496,-1288.16,0.00016438,2]
[366346120,1750200646506,-490.0,0.00016438,2]
[366346121,1750200646516,-758.44,0.00016438,2]
[366346122,1750200646526,-490.0,0.00016438,2]
[366346123,1750200646535,-1078.63,0.00016438,2]
[366346124,1750200646545,-151.0,0.00016438,2]
[366346125,1750200646554,-151.0,0.00016438,2]
[366346126,1750200646564,-1054.26,0.00016438,2]
[366346127,1750200646573,-1106.98,0.00016438,2]
[366346128,1750200646583,-490.0,0.00016438,2]
[366346129,1750200646592,-712.37,0.00016438,2]
[366346130,1750200646602,-981.8,0.00016438,2]
[366346131,1750200646611,-490.0,0.00016438,2]
[366346132,1750200646620,-490.0,0.00016438,2]
[366346133,1750200646630,-783.08,0.00016438,2]
[366346134,1750200646639,-490.0,0.00016438,2]
[366346136,1750200646648,-490.0,0.00016438,2]
[366346137,1750200646657,-929.02,0.00016438,2]
[366346138,1750200646666,-860.2,0.00016438,2]
[366346139,1750200646676,-1116.06,0.00016438,2]
[366346140,1750200646685,-626.41,0.00016438,2]
[366346141,1750200646694,-490.0,0.00016438,2]
[366346142,1750200646703,-490.0,0.00016438,2]
[366346143,1750200646712,-795.57,0.00016438,2]
[366346144,1750200646721,-490.0,0.00016438,2]
[366346145,1750200646731,-490.0,0.00016438,2]
[366346146,1750200646741,-278.63299454,0.00016438,2]
[366346147,1750200646751,-490.0,0.00016438,2]
[366346148,1750200646760,-490.0,0.00016438,2]
[366346149,1750200646770,-490.0,0.00016438,2]
[366346150,1750200646780,-972.36,0.00016438,2]
[366346151,1750200646792,-490.0,0.00016438,2]
[366346152,1750200646802,-490.0,0.00016438,2]
[366346153,1750200646811,-403.80277888,0.00016438,2]
[366346154,1750200646821,-1099.42,0.00016438,2]
[366346155,1750200646831,-490.0,0.00016438,2]
[366346156,1750200646840,-1063.19,0.00016438,2]
[366346157,1750200646850,-822.46,0.00016438,2]
[366346158,1750200646859,-490.0,0.00016438,2]
[366346159,1750200646869,-738.03,0.00016438,2]
[366346160,1750200646878,-490.0,0.00016438,2]
[366346161,1750200646887,-490.0,0.00016438,2]
[366346162,1750200646897,-873.76,0.00016438,2]
[366346163,1750200646906,-151.0,0.00016438,2]
[366346164,1750200646915,-151.0,0.00016438,2]
[366346165,1750200646925,-151.0,0.00016438,2]
[366346166,1750200646935,-1526.12,0.00016438,2]
[366346167,1750200646945,-662.47,0.00016438,2]
[366346168,1750200646955,-490.0,0.00016438,2]
[366346169,1750200646964,-617.4,0.00016438,2]
[366346170,1750200646974,-151.0,0.00016438,2]
[366346171,1750200646983,-151.0,0.00016438,2]
[366346172,1750200646995,-151.0,0.00016438,2]
[366346173,1750200647005,-490.0,0.00016438,2]
[366346174,1750200647014,-662.82,0.00016438,2]
[366346175,1750200647024,-1033.95,0.00016438,2]
[366346176,1750200647034,-1050.55,0.00016438,2]
[366346177,1750200647043,-490.0,0.00016438,2]
[366346178,1750200647054,-1146.91,0.00016438,2]
[366346179,1750200647063,-730.71,0.00016438,2]
[366346180,1750200647073,-490.0,0.00016438,2]
[366346181,1750200647083,-490.0,0.00016438,2]
[366346182,1750200647092,-490.0,0.00016438,2]
[366346183,1750200647102,-809.34,0.00016438,2]
[366346184,1750200647111,-490.0,0.00016438,2]
[366346185,1750200647121,-703.94,0.00016438,2]
[366346186,1750200647131,-1558.54,0.00016438,2]
[366346187,1750200647140,-531.68,0.00016438,2]
[366346188,1750200647149,-1292.22,0.00016438,2]
[366346189,1750200647159,-151.0,0.00016438,2]
[366346190,1750200647168,-490.0,0.00016438,2]
[366346191,1750200647178,-151.0,0.00016438,2]
[366346192,1750200647187,-151.0,0.00016438,2]
[366346193,1750200647196,-945.04,0.00016438,2]
[366346194,1750200647206,-490.0,0.00016438,2]
[366346195,1750200647216,-490.0,0.00016438,2]
[366346196,1750200647225,-490.0,0.00016438,2]
[366346197,1750200647235,-490.67651164,0.00016438,2]
[366346198,1750200647245,-490.0,0.00016438,2]
[366346199,1750200647254,-490.0,0.00016438,2]
[366346200,1750200647264,-1143.54,0.00016438,2]
[366346201,1750200647275,-514.87206936,0.00016438,2]
[366346202,1750200647286,-509.65,0.00016438,2]
[366346203,1750200647297,-2014.49,0.00016438,2]
[366346204,1750200647307,-605.17,0.00016438,2]
[366346205,1750200647318,-300.85825068,0.00016438,2]
[366346206,1750200647329,-490.0,0.00016438,2]
[366346207,1750200647340,-895.65,0.00016438,2]
[366346208,1750200647351,-959.18,0.00016438,2]
[366346209,1750200647361,-490.0,0.00016438,2]
[366346210,1750200647372,-490.0,0.00016438,2]
[366346211,1750200647382,-490.0,0.00016438,2]
[366346212,1750200647391,-682.88,0.00016438,2]
[366346213,1750200647401,-869.85,0.00016438,2]
[366346214,1750200647410,-490.0,0.00016438,2]
[366346215,1750200647420,-490.0,0.00016438,2]
[366346216,1750200647430,-1427.28,0.00016438,2]
[366346217,1750200647440,-490.0,0.00016438,2]
[366346218,1750200647450,-490.0,0.00016438,2]
[366346219,1750200647460,-986.02,0.00016438,2]
[366346220,1750200647469,-1610.42,0.00016438,2]
[366346221,1750200647479,-490.0,0.00016438,2]
[366346222,1750200647488,-490.0,0.00016438,2]
[366346223,1750200647499,-1404.25,0.00016438,2]
[366346224,1750200647508,-490.0,0.00016438,2]
[366346225,1750200647518,-490.0,0.00016438,2]
[366346226,1750200647528,-490.0,0.00016438,2]
[366346227,1750200647537,-1731.11,0.00016438,2]
[366346228,1750200647548,-490.0,0.00016438,2]
[366346229,1750200647558,-490.0,0.00016438,2]
[366346230,1750200647567,-490.0,0.00016438,2]
[366346231,1750200647576,-418.95185512,0.00016438,2]
[366346232,1750200647586,-830.75,0.00016438,2]
[366346233,1750200647595,-490.0,0.00016438,2]